fUST/lending_fUST_20251116
["ID","MTS","AMOUNT","RATE_DAILY","PERIOD"]
[394095965,1763274638421,-1896.94150928,0.00017228,2]
[394096009,1763274640718,-3e-08,0.00017228,2]
[394096498,1763274645939,-314930.9407117,0.00017228,2]
[394096501,1763274645959,-38864.05233881,0.00017228,2]
[394096503,1763274645970,-486.755,0.00017228,2]
[394096505,1763274645981,-15015.42390756,0.00017228,2]
[394096580,1763274646679,-1801.77212347,0.00017228,2]
[394096582,1763274646690,-3316.63897699,0.00017228,2]
[394096584,1763274646701,-8035.74999984,0.00017228,2]
[394097071,1763274736547,2489.53,0.000185,3]
[394097072,1763274753302,522.391805,0.00018048,3]
[394097073,1763274753593,522.391805,0.00016965,3]
[394097074,1763274753909,522.391805,0.00015882,3]
[394097075,1763274754246,522.391805,0.00014799,3]
[394097076,1763274754539,522.391805,0.00013716,3]
[394097077,1763274760433,522.391805,0.00018295,5]
[394097078,1763274760735,522.391805,0.000175,5]
[394097080,1763274844528,5000.0,0.00017045,2]
[394097081,1763274860858,1113.76893254,0.00016955,2]
[394097082,1763274867371,3886.24106746,0.00017045,2]
[394097083,1763274867396,1113.75893254,0.00017045,2]
[394097084,1763274890419,5000.0,0.00017045,2]
[394097085,1763274892417,-962.83238794,0.00017055,2]
[394097086,1763274893876,-31.16761206,0.00017055,2]
[394097087,1763274893901,-300.0,0.00017055,2]
[394097088,1763274893926,-167.42926683,0.00017056,2]
[394097089,1763274893948,-29.85548961,0.00017056,2]
[394097090,1763274897274,-130.14451039,0.00017056,2]
[394097091,1763274897301,-312.5951554,0.00017169,2]
[394097092,1763274934135,2099.5,0.00032877,120]
[394097093,1763274952769,385.96297918,0.00016521,2]
[394097096,1763275027367,-521.80173988,0.00017169,2]
[394097097,1763275029322,-414.81119846,0.00017169,2]
[394097098,1763275030432,9614.04702082,0.00017128,2]
[394097099,1763275030457,10000.01,0.00017128,2]
[394097100,1763275042386,-248.72522566,0.00017128,2]
[394097101,1763275044470,-229.53691335,0.00017128,2]
[394097102,1763275045357,5000.0,0.00017118,2]
[394097103,1763275045911,-160.0,0.00017128,2]
[394097104,1763275049394,-531.26706152,0.00017128,2]
[394097105,1763275052235,-261.02304568,0.00017128,2]
[394097106,1763275053830,-337.66952295,0.00017128,2]
[394097107,1763275058625,-195.98671189,0.00017128,2]
[394097108,1763275061154,-300.0,0.00017128,2]
[394097109,1763275062692,-353.17046403,0.00017128,2]
[394097110,1763275064735,-321.48137167,0.00017128,2]
[394097111,1763275068173,5000.0,0.00017118,2]
[394097112,1763275090743,0.01,0.00017118,2]
[394097113,1763275090767,4999.99,0.00017118,2]
[394097114,1763275094570,184.35836762,0.00018502,5]
[394097115,1763275097926,736.69603702,0.00018502,5]
[394097116,1763275100045,211.8311894,0.00016087,2]
[394097117,1763275101018,3750.21259419,0.00016976,2]
[394097118,1763275101995,847.32475761,0.00016343,2]
[394097119,1763275103882,190.6514588,0.00016599,2]
[394097120,1763275103907,1715.82924582,0.00016599,2]
[394097121,1763275105762,3389.29903043,0.00016855,2]
[394097122,1763275114112,4894.88172375,0.00017118,2]
[394097123,1763275268604,197.55783409,0.00018502,5]
[394097124,1763275270560,172.08497018,0.00016031,2]
[394097125,1763275271943,688.33988071,0.00016406,2]
[394097126,1763275305937,5000.0,0.00016748,2]
[394097127,1763275314051,4139.58514911,0.00016748,2]
[394097128,1763275314075,860.41485089,0.00016748,2]
[394097129,1763275323188,470.88321429,0.00016748,2]
[394097130,1763275331175,4560.14981505,0.00016748,2]
[394097131,1763275339660,5000.0,0.00016772,2]
[394097132,1763275355096,5000.0,0.00016772,2]
[394097133,1763275372612,-168.00261906,0.00016782,2]
[394097134,1763275374713,-205.00930454,0.00016782,2]
[394097135,1763275376779,-181.51913986,0.00016782,2]
[394097136,1763275377675,0.01,0.00016772,2]
[394097137,1763275377702,4999.99,0.00016772,2]
[394097138,1763275378868,-477.4715556,0.00016782,2]
[394097139,1763275408303,158.16814676,0.0001602,2]
[394097140,1763275417277,376.1221,0.00018295,5]
[394097141,1763275417567,376.1221,0.000175,5]
[394097142,1763275418228,376.1221,0.00018238,3]
[394097143,1763275418699,376.1221,0.00017686,3]
[394097144,1763275419030,376.1221,0.00017135,3]
[394097145,1763275419327,376.1221,0.00016583,3]
[394097146,1763275562253,327.87797,0.00015976,2]
[394097147,1763275565494,-173.54015037,0.00016367,2]
[394097148,1763275597576,5000.0,0.00016307,2]
[394097149,1763275621946,151.44,5e-05,2]
[394097150,1763275623946,-479.86461359,0.00016203,2]
[394097151,1763275625498,-907.0,0.00016203,2]
[394097152,1763275631127,-1229.29019142,0.00016203,2]
[394097153,1763275632718,-306.23328388,0.00016203,2]
[394097154,1763275634586,-310.57234967,0.00016203,2]
[394097155,1763275636798,-505.10890881,0.00016203,2]
[394097156,1763275638606,-300.72059272,0.00016203,2]
[394097157,1763275640011,-800.0,0.00016203,2]
[394097158,1763275672355,-161.21005991,0.00016203,2]
[394097159,1763275672377,-138.78994009,0.00016267,2]
[394097160,1763275685911,5000.0,0.00015997,2]
[394097161,1763275708615,349.51913986,0.00015997,2]
[394097162,1763275718092,500.0,0.00015997,2]
[394097164,1763275741362,150.0,0.00032876,120]
[394097205,1763275832612,-23.29995587,0.00016267,2]
[394097207,1763275832621,-170.63103299,0.00016285,2]
[394097209,1763275832631,-253.74711962,0.000163,2]
[394097211,1763275832640,-154.90269049,0.00016367,2]
[394097213,1763275832649,-245.18353728,0.00016488,2]
[394097215,1763275832658,-768.0,0.00016681,2]
[394097217,1763275832667,-768.0,0.00016819,2]
[394097219,1763275832676,-216.23566375,0.00016874,2]
[394097221,1763275832688,-2750.0,0.00016874,2]
[394097224,1763275832703,-783.97693044,0.00016874,2]
[394097226,1763275832713,-273.2148456,0.00016939,2]
[394097228,1763275832724,-26.7851544,0.00016939,2]
[394097230,1763275832733,-300.0,0.00016939,2]
[394097232,1763275832742,-1200.0,0.00016939,2]
[394097234,1763275832751,-4499.0,0.0001694,2]
[394097236,1763275832760,-603.48312779,0.00016941,2]
[394097238,1763275832771,-453.70864825,0.00016941,2]
[394097240,1763275832781,-103.55135175,0.00016944,2]
[394097305,1763275838642,-4395.44864825,0.00016944,2]
[394097306,1763275838652,-2758.62213984,0.00016973,2]
[394097307,1763275838662,-1396.33689439,0.0001699,2]
[394097308,1763275838671,-587.25,0.00017014,2]
[394097309,1763275838681,-4499.0,0.00017015,2]
[394097310,1763275838691,-768.0,0.00017063,2]
[394097311,1763275838700,-180.58117971,0.00017073,2]
[394097312,1763275838710,-6626.40403037,0.00017073,2]
[394097313,1763275838719,-186.375,0.00017097,2]
[394097314,1763275838728,-151.0,0.000171,2]
[394097315,1763275838738,-500.0,0.00017124,2]
[394097316,1763275838752,-500.0,0.00017124,2]
[394097317,1763275838762,-500.0,0.00017124,2]
[394097318,1763275838771,-369.71738119,0.00017124,2]
[394097319,1763275838780,-500.0,0.00017124,2]
[394097320,1763275838790,-500.0,0.00017124,2]
[394097321,1763275838800,-395.74596155,0.00017124,2]
[394097322,1763275838809,-539.0,0.00017124,2]
[394097323,1763275838819,-397.48519602,0.00017124,2]
[394097324,1763275838828,-422.06389267,0.00017124,2]
[394097325,1763275838838,-160.0,0.00017125,2]
[394097326,1763275838847,-1000.0,0.00017125,2]
[394097327,1763275838857,-1000.0,0.00017125,2]
[394097328,1763275838866,-1000.0,0.00017125,2]
[394097329,1763275838875,-1000.0,0.00017125,2]
[394097330,1763275838885,-1000.0,0.00017125,2]
[394097331,1763275838895,-1000.0,0.00017125,2]
[394097332,1763275838904,-1000.0,0.00017125,2]
[394097333,1763275838914,-500.0,0.00017125,2]
[394097334,1763275838924,-500.0,0.00017125,2]
[394097335,1763275838933,-500.0,0.00017125,2]
[394097336,1763275838942,-500.0,0.00017125,2]
[394097337,1763275838952,-641.6,0.00017125,2]
[394097338,1763275838962,-391.09777744,0.00017125,2]
[394097339,1763275838971,-207.91383145,0.00017125,2]
[394097340,1763275838981,-221.95629149,0.00017125,2]
[394097341,1763275838991,-17543.45444049,0.00017126,2]
[394097346,1763275841122,-3e-08,0.00017126,2]
[394097380,1763275843870,-79.87326839,0.00017126,2]
[394097382,1763275846843,-208.06039391,0.00017124,2]
[394097383,1763275846853,-67056.14524523,0.00017126,2]
[394097384,1763275846864,-6219.33999992,0.00017126,2]
[394097385,1763275847202,-1349.9999975,0.00017126,2]
[394097386,1763275847248,-553.04608223,0.00017126,2]
[394097387,1763275954536,285.852796,0.0001824,3]
[394097388,1763275954825,285.852796,0.0001769,3]
[394097389,1763275955121,285.852796,0.0001714,3]
[394097390,1763275955971,285.852796,0.0001659,3]
[394097391,1763275957263,285.852796,0.00018295,5]
[394097392,1763275957767,285.852796,0.000175,5]
[394097393,1763276129878,281.5533925,0.00016852,2]
[394097394,1763276217485,2250.50954869,0.00016737,2]
[394097395,1763276272196,664.667318,0.00013699,2]
[394097397,1763276309031,375.2208216,0.00016711,2]
[394097398,1763276343371,3750.21259419,0.00016809,2]
[394097399,1763276363568,676.0,0.00016624,2]
[394097400,1763276368683,676.0,0.00016847,2]
[394097401,1763276373770,676.0,0.00016563,2]
[394097402,1763276379930,649.84632502,0.0001658,2]
[394097403,1763276379954,26.15367498,0.0001658,2]
[394097404,1763276381325,997.25702826,0.00016839,2]
[394097405,1763276384979,676.0,0.00016522,2]
[394097406,1763276462969,406.81578535,0.0001627,2]
[394097407,1763276467926,177.44788898,0.00016873,2]
[394097408,1763276471334,9415.74632567,0.00015,2]
[394097410,1763276603393,598.11159361,0.00018502,5]
[394097411,1763276605432,2390.05392805,0.00018502,5]
[394097412,1763276769470,226.74725482,0.00018502,5]
[394097413,1763276771966,906.08203027,0.00018502,5]
[394097434,1763276906065,208.20138359,0.00018502,5]
[394097435,1763276917484,-509.25367433,0.00015,2]
[394097436,1763276917507,-198.81943531,0.00015456,2]
[394097437,1763276919557,-300.0,0.00015456,2]
[394097438,1763276921197,-186.06169872,0.00015456,2]
[394097439,1763276925185,-216.96010571,0.00015456,2]
[394097440,1763276928456,-219.26868526,0.00015456,2]
[394097441,1763276935199,-138.12356814,0.00015456,2]
[394097442,1763276935223,-24.91304654,0.00015546,2]
[394097444,1763276941455,150.0,0.00032875,120]
[394097462,1763277031890,-142.30536579,0.00015546,2]
[394097463,1763277031899,-270.14826091,0.0001627,2]
[394097464,1763277031909,-128.66284096,0.00016694,2]
[394097465,1763277031920,-1860.06489778,0.00016694,2]
[394097471,1763277037739,-1143.24370011,0.00016694,2]
[394097472,1763277037852,-2756.02856115,0.00016694,2]
[394097473,1763277037862,-1200.0,0.00016734,2]
[394097474,1763277037871,-2250.50954869,0.00016735,2]
[394097475,1763277037881,-300.0,0.0001689,2]
[394097476,1763277037890,-519867.55053225,0.0001689,2]
[394097509,1763277039906,-1157.66542663,0.0001689,2]
[394097516,1763277039966,-1000.0,0.0001689,2]
[394097783,1763277043178,-25578.74472308,0.0001689,2]
[394097785,1763277043190,-9681.2496019,0.0001689,2]
[394098096,1763277046286,-59785.00322874,0.0001689,2]
[394098140,1763277072279,215.2796775,0.00015985,2]
[394098141,1763277079154,555.0,0.00032876,120]
[394098144,1763277155164,181.040104,0.00018128,10]
[394098145,1763277155453,181.040104,0.00016985,10]
[394098146,1763277155762,181.040104,0.00015842,10]
[394098147,1763277156070,181.040104,0.000147,10]
[394098148,1763277158470,181.040104,0.0001862,5]
[394098149,1763277158787,181.040104,0.0001806,5]
[394098150,1763277159086,181.040104,0.000175,5]
[394098151,1763277159720,181.040104,0.00018222,3]
[394098152,1763277160020,181.040104,0.00017655,3]
[394098153,1763277160847,181.040104,0.00017087,3]
[394098154,1763277161149,181.040104,0.0001652,3]
[394098155,1763277183775,251.84,0.0001687,2]
[394098157,1763277221320,8471.5852956,0.00015956,2]
[394098158,1763277242104,251.84,0.0001687,2]
[394098159,1763277291471,547.60049205,0.000168,2]
[394098160,1763277294272,261.86453485,0.0001687,2]
[394098161,1763277294299,342.63546515,0.0001687,2]
[394098162,1763277354291,375.0038695,0.0001591,2]
[394098163,1763277395251,485.4295568,0.0001591,2]
[394098164,1763277479015,8796.94110855,0.00015,2]
[394098165,1763277479036,684.86387797,0.00015,2]
[394098173,1763277567035,3750.21259419,0.00016837,2]
[394098174,1763277643557,5564.93352784,0.00016499,2]
[394098175,1763277643583,323.06647216,0.00016499,2]
[394098176,1763277649568,5888.0,0.00016746,2]
[394098177,1763277668418,3788.94352784,0.00015889,2]
[394098178,1763277668441,1223.38656256,0.00015889,2]
[394098180,1763277697830,2250.50954869,0.00016676,2]
[394098181,1763277729101,-2746.64651854,0.00016872,2]
[394098182,1763277753613,156.352817,0.00018275,3]
[394098183,1763277753920,156.352817,0.0001776,3]
[394098184,1763277754256,156.352817,0.00017245,3]
[394098185,1763277754998,156.352817,0.0001673,3]
[394098186,1763277758956,156.352817,0.00018295,5]
[394098187,1763277807065,791.21450886,0.00016872,2]
[394098189,1763277961514,1244.8727704,0.00015931,2]
[394098191,1763277981218,1000.0,0.00032,120]
[394098197,1763278051910,2470.62968366,0.0001679,2]
[394098198,1763278051937,10000.01,0.0001679,2]
[394098199,1763278051964,10000.01,0.0001679,2]
[394098200,1763278051990,10000.01,0.0001679,2]
[394098201,1763278052016,10000.01,0.0001679,2]
[394098202,1763278052042,10000.01,0.0001679,2]
[394098203,1763278052068,10000.01,0.0001679,2]
[394098204,1763278052094,10000.01,0.0001679,2]
[394098205,1763278052119,10000.01,0.0001679,2]
[394098206,1763278052145,10000.01,0.0001679,2]
[394098208,1763278063463,-1661.70656536,0.0001679,2]
[394098209,1763278063571,-10000.01,0.0001679,2]
[394098210,1763278063698,-10000.01,0.0001679,2]
[394098211,1763278063816,-10000.01,0.0001679,2]
[394098212,1763278063943,-10000.01,0.0001679,2]
[394098213,1763278064054,-10000.01,0.0001679,2]
[394098214,1763278064174,-10000.01,0.0001679,2]
[394098215,1763278066237,-10000.01,0.0001679,2]
[394098216,1763278068280,706.06948421,0.00018,3]
[394098217,1763278069238,-300.0,0.00016621,2]
[394098218,1763278069266,-300.0,0.00016789,2]
[394098219,1763278069313,-8800.01,0.0001679,2]
[394098220,1763278069337,-10000.01,0.0001679,2]
[394098221,1763278069481,-10000.01,0.0001679,2]
[394098222,1763278069610,-10000.01,0.0001679,2]
[394098223,1763278069723,-10000.01,0.0001679,2]
[394098224,1763278072333,-10000.01,0.0001679,2]
[394098225,1763278072449,-10000.01,0.0001679,2]
[394098226,1763278081688,152.3,5e-05,2]
[394098227,1763278082033,152.3,6.8e-05,2]
[394098228,1763278082940,152.3,8.5e-05,2]
[394098229,1763278083401,152.3,0.000103,2]
[394098237,1763278123114,228.44,0.0001,2]
[394098244,1763278140737,150.0,0.00032875,120]
[394098355,1763278238293,-300.0,0.00016455,2]
[394098356,1763278238304,-163.87404408,0.00016538,2]
[394098357,1763278238313,-300.0,0.00016621,2]
[394098358,1763278238323,-300.0,0.00016621,2]
[394098359,1763278238333,-397.67994226,0.00016621,2]
[394098649,1763278243354,-349.3913597,0.00016621,2]
[394098669,1763278278820,176.01700122,0.00016311,2]
[394098671,1763278432879,165.0,0.000186,3]
[394098672,1763278492485,-625.44777549,0.00015986,2]
[394098673,1763278492505,-337.38461248,0.0001599,2]
[394098674,1763278495054,-197.28475644,0.0001599,2]
[394098675,1763278497230,-300.0,0.0001599,2]
[394098676,1763278499684,-312.5951554,0.0001599,2]
[394098677,1763278501649,-161.31212245,0.0001599,2]
[394098678,1763278502107,5000.0,0.00015976,2]
[394098679,1763278524106,5000.0,0.0001598,2]
[394098680,1763278546715,5000.0,0.0001598,2]
[394098681,1763278568916,0.01,0.0001598,2]
[394098682,1763278568940,1202.9598304,0.0001598,2]
[394098683,1763278580926,340.74511132,0.00015495,2]
[394098685,1763278627525,-300.0,0.00015989,2]
[394098686,1763278627546,-221.80173988,0.00015989,2]
[394098687,1763278629643,-78.19826012,0.00015989,2]
[394098688,1763278629668,-300.0,0.00015989,2]
[394098689,1763278629691,-36.61293834,0.00015989,2]
[394098690,1763278639962,1113.76893254,0.00015889,2]
[394098691,1763278642404,-248.72522566,0.00015989,2]
[394098692,1763278648782,5000.0,0.0001598,2]
[394098693,1763278649459,-229.53691335,0.00015989,2]
[394098694,1763278651209,-531.26706152,0.00015989,2]
[394098695,1763278653908,-153.85786113,0.00015989,2]
[394098696,1763278653930,-6.14213887,0.00015989,2]
[394098697,1763278655789,156.352817,0.0001824,10]
[394098698,1763278659513,-195.98671189,0.00015989,2]
[394098699,1763278661119,-97.87114924,0.00015989,2]
[394098700,1763278661147,-174.56514854,0.0001599,2]
[394098701,1763278661168,-65.23322517,0.0001599,2]
[394098702,1763278663922,-300.0,0.0001599,2]
[394098703,1763278665844,-321.48137167,0.0001599,2]
[394098704,1763278667652,-353.17046403,0.00015989,2]
[394098705,1763278669449,-261.02304568,0.00015989,2]
[394098706,1763278671777,2342.53612574,0.0001598,2]
[394098707,1763278671803,2657.46387426,0.0001598,2]
[394098708,1763278694059,5000.0,0.0001598,2]
[394098710,1763278715096,284.70266417,0.00015495,2]
[394098711,1763278716321,2057.84346157,0.0001598,2]
[394098712,1763278717584,-2942.15653843,0.0001598,2]
[394098713,1763278719223,1536.68,0.0001598,2]
[394098714,1763278738967,2579.01692314,0.0001598,2]
[394098715,1763278738990,2420.98307686,0.0001598,2]
[394098716,1763278761608,5000.0,0.0001598,2]
[394098717,1763278784560,2579.02692314,0.0001598,2]
[394098718,1763278784583,2420.97307686,0.0001598,2]
[394098719,1763278806994,5000.0,0.0001598,2]
[394098720,1763278829244,2579.03692314,0.0001598,2]
[394098721,1763278829267,2420.96307686,0.0001598,2]
[394098722,1763278852093,5000.0,0.0001598,2]
[394098723,1763278874884,2579.04692314,0.0001598,2]
[394098724,1763278874909,2420.95307686,0.0001598,2]
[394098725,1763278876038,642.988112,0.00013699,2]
[394098727,1763278897419,5000.0,0.0001598,2]
[394098729,1763278919937,-2535.62649029,0.00015829,2]
[394098730,1763278925915,241.73221632,0.00032,120]
[394098731,1763278934527,349.988562,0.00015673,2]
[394098732,1763278942304,1938.86441838,0.00015979,2]
[394098733,1763278954170,156.352817,0.00018471,3]
[394098734,1763278987470,-168.00261906,0.00015988,2]
[394098735,1763278989889,-205.00930454,0.00015988,2]
[394098736,1763278991505,-5.9880764,0.00015988,2]
[394098737,1763278991529,-175.53106346,0.00015989,2]
[394098738,1763278993876,-477.4715556,0.00015989,2]
[394098739,1763278994539,246.62503692,0.00032,120]
[394098743,1763279167491,-173.54015037,0.00015989,2]
[394098745,1763279193113,156.63700041,0.00015664,2]
[394098746,1763279226950,4391.96095536,0.00032,120]
[394098747,1763279228660,-907.0,0.00015989,2]
[394098748,1763279230178,-119.45984963,0.00015989,2]
[394098749,1763279230200,-360.40476396,0.00015989,2]
[394098750,1763279234117,-139.59523604,0.00015989,2]
[394098751,1763279234138,-300.0,0.00015989,2]
[394098752,1763279234159,-171.07384557,0.00015989,2]
[394098753,1763279234181,-618.62110981,0.0001599,2]
[394098754,1763279237391,-306.23328388,0.0001599,2]
[394098755,1763279239620,-300.72059272,0.0001599,2]
[394098756,1763279241088,-800.0,0.0001599,2]
[394098757,1763279245480,-310.57234967,0.0001599,2]
[394098758,1763279246088,4333.68103128,0.00015979,2]
[394098759,1763279272484,-505.10890881,0.0001599,2]
[394098760,1763279274239,-300.0,0.0001599,2]
[394098761,1763279289827,666.31896872,0.0001598,2]
[394098762,1763279312289,5000.0,0.0001598,2]
[394098763,1763279334788,0.01,0.0001598,2]
[394098764,1763279334812,4999.99,0.0001598,2]
[394098766,1763279340717,150.0,0.00032874,120]
[394098783,1763279356774,5000.0,0.0001598,2]
[394098784,1763279359104,-300.0,0.00015989,2]
[394098785,1763279359124,-13093.26622506,0.0001599,2]
[394098786,1763279407391,0.02,0.0001598,2]
[394098787,1763279407415,4999.98,0.0001598,2]
[394098788,1763279415209,470.88321429,0.0001598,2]
[394098789,1763279423706,4529.14678571,0.0001598,2]
[394098790,1763279423731,31.00302934,0.0001598,2]
[394098791,1763279431557,5000.0,0.0001598,2]
[394098814,1763279432233,-634.98,0.00015989,2]
[394098816,1763279432243,-300.0,0.00015989,2]
[394098818,1763279432252,-896.0,0.00015989,2]
[394098820,1763279432262,-500.0,0.00015989,2]
[394098822,1763279432271,-5583.88900854,0.0001599,2]
[394098830,1763279432354,-5218.7206125,0.0001599,2]
[394098832,1763279432363,-170.065,0.0001599,2]
[394098834,1763279432372,-3750.21259419,0.00016487,2]
[394098836,1763279432381,-2250.50954869,0.00016513,2]
[394098838,1763279432391,-281.94660073,0.00016695,2]
[394098840,1763279432400,-163.66517636,0.00016701,2]
[394098842,1763279432409,-500.0,0.00016701,2]
[394098844,1763279432418,-500.0,0.00016701,2]
[394098845,1763279432427,-500.0,0.00016701,2]
[394098847,1763279432437,-500.0,0.00016701,2]
[394098849,1763279432446,-500.0,0.00016701,2]
[394098851,1763279432456,-500.0,0.00016701,2]
[394098852,1763279432465,-500.0,0.00016701,2]
[394098853,1763279432474,-500.0,0.00016701,2]
[394098854,1763279432483,-500.0,0.00016701,2]
[394098855,1763279432491,-500.0,0.00016701,2]
[394098856,1763279432500,-500.0,0.00016701,2]
[394098857,1763279432509,-500.0,0.00016701,2]
[394098858,1763279432519,-500.0,0.00016701,2]
[394098859,1763279432528,-500.0,0.00016701,2]
[394098860,1763279432538,-500.0,0.00016701,2]
[394098861,1763279432547,-169.0446914,0.00016701,2]
[394098862,1763279432556,-500.0,0.00016701,2]
[394098863,1763279432565,-241.99026555,0.00016701,2]
[394098864,1763279432574,-500.0,0.00016701,2]
[394098865,1763279432584,-500.0,0.00016701,2]
[394098866,1763279432593,-500.0,0.00016701,2]
[394098867,1763279432603,-500.0,0.00016701,2]
[394098868,1763279432613,-500.0,0.00016701,2]
[394098869,1763279432622,-500.0,0.00016701,2]
[394098870,1763279432631,-500.0,0.00016701,2]
[394098871,1763279432640,-500.0,0.00016701,2]
[394098872,1763279432649,-500.0,0.00016701,2]
[394098873,1763279432659,-500.0,0.00016701,2]
[394098874,1763279432668,-500.0,0.00016701,2]
[394098875,1763279432678,-500.0,0.00016701,2]
[394098876,1763279432688,-500.0,0.00016701,2]
[394098877,1763279432698,-500.0,0.00016701,2]
[394098878,1763279432707,-500.0,0.00016701,2]
[394098879,1763279432716,-500.0,0.00016701,2]
[394098880,1763279432726,-500.0,0.00016701,2]
[394098881,1763279432735,-500.0,0.00016701,2]
[394098882,1763279432744,-500.0,0.00016701,2]
[394098883,1763279432754,-440.6991775,0.00016701,2]
[394098884,1763279432763,-500.0,0.00016701,2]
[394098885,1763279432772,-177.74965266,0.00016701,2]
[394098886,1763279432782,-500.0,0.00016701,2]
[394098887,1763279432791,-500.0,0.00016701,2]
[394098888,1763279432800,-500.0,0.00016701,2]
[394098889,1763279432809,-500.0,0.00016701,2]
[394098890,1763279432819,-500.0,0.00016701,2]
[394098891,1763279432828,-500.0,0.00016701,2]
[394098892,1763279432838,-500.0,0.00016701,2]
[394098893,1763279432847,-500.0,0.00016701,2]
[394098894,1763279432856,-500.0,0.00016701,2]
[394098895,1763279432865,-500.0,0.00016701,2]
[394098896,1763279432875,-500.0,0.00016701,2]
[394098897,1763279432884,-500.0,0.00016701,2]
[394098898,1763279432893,-500.0,0.00016701,2]
[394098899,1763279432902,-500.0,0.00016701,2]
[394098900,1763279432911,-500.0,0.00016701,2]
[394098901,1763279432920,-500.0,0.00016701,2]
[394098902,1763279432930,-500.0,0.00016701,2]
[394098903,1763279432939,-500.0,0.00016701,2]
[394098904,1763279432948,-500.0,0.00016701,2]
[394098905,1763279432957,-500.0,0.00016701,2]
[394098906,1763279432966,-500.0,0.00016701,2]
[394098907,1763279432975,-500.0,0.00016701,2]
[394098908,1763279432985,-643.58769122,0.00016701,2]
[394098909,1763279432994,-500.0,0.00016701,2]
[394098910,1763279433003,-500.0,0.00016701,2]
[394098911,1763279433012,-500.0,0.00016701,2]
[394098912,1763279433021,-500.0,0.00016701,2]
[394098913,1763279433031,-500.0,0.00016701,2]
[394098914,1763279433040,-500.0,0.00016701,2]
[394098915,1763279433049,-500.0,0.00016701,2]
[394098916,1763279433059,-500.0,0.00016701,2]
[394098917,1763279433068,-500.0,0.00016701,2]
[394098918,1763279433078,-500.0,0.00016701,2]
[394098919,1763279433088,-500.0,0.00016701,2]
[394098920,1763279433098,-500.0,0.00016701,2]
[394098921,1763279433107,-355.78171499,0.00016701,2]
[394098922,1763279433117,-500.0,0.00016701,2]
[394098923,1763279433127,-500.0,0.00016701,2]
[394098924,1763279433138,-500.0,0.00016701,2]
[394098925,1763279433148,-500.0,0.00016701,2]
[394098926,1763279433158,-500.0,0.00016701,2]
[394098927,1763279433168,-500.0,0.00016701,2]
[394098928,1763279433177,-500.0,0.00016701,2]
[394098929,1763279433188,-500.0,0.00016701,2]
[394098930,1763279433198,-500.0,0.00016701,2]
[394098931,1763279433207,-500.0,0.00016701,2]
[394098932,1763279433216,-500.0,0.00016701,2]
[394098933,1763279433226,-500.0,0.00016701,2]
[394098934,1763279433235,-500.0,0.00016701,2]
[394098935,1763279433244,-500.0,0.00016701,2]
[394098936,1763279433253,-500.0,0.00016701,2]
[394098937,1763279433263,-500.0,0.00016701,2]
[394098938,1763279433272,-500.0,0.00016701,2]
[394098939,1763279433282,-500.0,0.00016701,2]
[394098940,1763279433291,-500.0,0.00016701,2]
[394098941,1763279433300,-500.0,0.00016701,2]
[394098942,1763279433309,-500.0,0.00016701,2]
[394098943,1763279433319,-234.35876912,0.00016701,2]
[394098944,1763279433328,-500.0,0.00016701,2]
[394098945,1763279433338,-500.0,0.00016701,2]
[394098946,1763279433347,-500.0,0.00016701,2]
[394098947,1763279433357,-500.0,0.00016701,2]